bitfinex/quotes_SOLUSD_20230110
["timestamp","ask_amount","ask_price","bid_price","bid_amount"]
[1673342361501,25.86,16.24,16.227,116.4901]
[1673342361708,25.86,16.24,16.221,20.0]
[1673342361918,25.86,16.24,16.227,46.23]
[1673342362135,46.18,16.247,16.228,20.0]
[1673342362333,5.6191536,16.248,16.23,25.92]
[1673342362551,5.6191536,16.248,16.231,46.22]
[1673342362765,5.6191536,16.248,16.232,20.0]
[1673342363075,5.6191536,16.248,16.233,66.22]
[1673342363291,5.6191536,16.248,16.229,46.23]
[1673342363507,25.86,16.24,16.229,46.23]
[1673342363710,25.86,16.24,16.227,162.7201]
[1673342363935,25.86,16.24,16.226,112.5476]
[1673342364147,25.86,16.24,16.228,20.0]
[1673342365184,25.86,16.24,16.229,1.92]
[1673342365710,25.86,16.24,16.228,20.0]
[1673342365924,25.86,16.24,16.229,20.0]
[1673342367080,25.86,16.24,16.23,20.0]
[1673342367496,25.86,16.25,16.231,0.96]
[1673342367724,25.86,16.25,16.232,47.18]
[1673342367919,25.86,16.25,16.233,20.96]
[1673342368132,25.86,16.25,16.235,20.0]
[1673342368336,25.86,16.25,16.236,48.13]
[1673342368549,25.86,16.25,16.237,20.0]
[1673342368791,25.86,16.25,16.238,0.96]
[1673342368973,25.86,16.25,16.238,21.92]
[1673342369300,25.86,16.25,16.239,20.0]
[1673342369510,25.86,16.25,16.24,1.92]
[1673342369912,25.86,16.25,16.238,20.0]
[1673342369913,25.86,16.25,16.238,46.2]
[1673342370123,20.0,16.249,16.239,20.0]
[1673342370886,20.0,16.246,16.227,112.6998]
[1673342371096,25.74,16.24,16.23,20.0]
[1673342371397,25.74,16.24,16.23,66.23]
[1673342372019,25.74,16.24,16.23,20.0]
[1673342372223,25.74,16.24,16.229,46.23]
[1673342372455,25.74,16.24,16.227,112.6998]
[1673342373279,25.74,16.24,16.229,46.23]
[1673342373490,25.74,16.24,16.228,66.23]
[1673342374119,25.74,16.24,16.229,20.0]
[1673342374770,25.74,16.24,16.227,20.0]
[1673342374972,20.0,16.239,16.227,20.0]
[1673342375286,20.0,16.239,16.226,66.24]
[1673342375506,20.0,16.239,16.227,20.0]
[1673342375714,25.74,16.24,16.227,20.0]
[1673342375929,51.7991536,16.248,16.228,48.15]
[1673342376141,5.6191536,16.248,16.231,20.0]
[1673342376459,5.6191536,16.248,16.232,48.14]
[1673342376772,5.6191536,16.248,16.234,20.0]
[1673342376977,5.6191536,16.248,16.236,20.0]
[1673342377193,5.6191536,16.248,16.237,66.21]
[1673342377384,5.6191536,16.248,16.237,67.17]
[1673342377594,5.6191536,16.248,16.238,20.0]
[1673342378140,5.6191536,16.248,16.239,20.0]
[1673342378339,5.6191536,16.248,16.24,20.0]
[1673342379180,5.6191536,16.248,16.239,20.0]
[1673342379392,5.6191536,16.248,16.236,20.0]
[1673342379393,5.6191536,16.248,16.238,20.0]
[1673342379591,5.6191536,16.248,16.237,20.0]
[1673342380540,25.6191536,16.248,16.237,20.0]
[1673342380752,5.6191536,16.248,16.237,20.0]
[1673342380973,5.6191536,16.248,16.238,20.0]
[1673342381189,5.6191536,16.248,16.239,1.92]
[1673342381392,5.6191536,16.248,16.239,21.92]
[1673342381612,5.6191536,16.248,16.239,20.0]
[1673342381799,51.7991536,16.248,16.239,20.0]
[1673342382011,5.6191536,16.248,16.236,20.0]
[1673342382537,20.0,16.247,16.234,46.21]
[1673342382746,20.0,16.247,16.232,46.22]
[1673342382747,66.18,16.247,16.232,46.22]
[1673342383167,66.18,16.247,16.231,46.22]
[1673342384004,66.18,16.247,16.232,20.0]
[1673342384218,20.0,16.247,16.231,46.22]
[1673342384540,1.92,16.246,16.231,46.22]
[1673342384751,1.92,16.246,16.232,20.0]
[1673342385284,18.92,16.246,16.233,46.22]
[1673342385798,20.0,16.247,16.233,46.22]
[1673342386007,46.18,16.246,16.234,20.0]
[1673342386222,66.18,16.247,16.234,20.0]
[1673342386436,20.0,16.247,16.233,46.22]
[1673342386644,20.0,16.247,16.234,20.0]
[1673342387388,5.6191536,16.248,16.235,0.96]
[1673342387594,5.6191536,16.248,16.236,46.21]
[1673342387911,5.6191536,16.248,16.237,20.0]
[1673342393490,5.6191536,16.248,16.234,20.0]
[1673342393682,5.6191536,16.248,16.235,46.21]
[1673342393895,5.6191536,16.248,16.237,20.0]
[1673342394318,5.6191536,16.248,16.232,34.12241843]
[1673342394319,65.1,16.247,16.232,34.12241843]
[1673342394630,25.77,16.24,16.222,112.805]
[1673342395163,25.77,16.24,16.224,46.24]
[1673342395362,25.77,16.24,16.224,60.01538294]
[1673342395571,25.77,16.24,16.225,20.0]
[1673342395799,25.77,16.24,16.227,20.0]
[1673342396010,25.77,16.24,16.228,66.23]
[1673342396219,25.77,16.24,16.228,46.23]
[1673342396632,25.77,16.24,16.227,20.0]
[1673342397800,25.77,16.24,16.229,20.0]
[1673342398324,25.77,16.24,16.23,46.23]
[1673342398725,25.77,16.24,16.228,20.0]
[1673342398935,25.77,16.24,16.227,20.0]
[1673342398936,25.89,16.24,16.227,20.0]
[1673342399142,25.89,16.24,16.228,20.0]
[1673342399473,25.89,16.24,16.229,20.0]
[1673342399684,1.92,16.239,16.228,66.23]
[1673342399884,25.89,16.24,16.228,20.0]
[1673342400638,85.12,16.239,16.227,20.0]
[1673342400953,85.12,16.239,16.222,46.25]
[1673342401136,25.89,16.23,16.22,46.25]
[1673342402527,25.89,16.23,16.218,20.0]
[1673342402719,1.92,16.229,16.218,20.0]
[1673342402930,25.89,16.23,16.219,66.26]
[1673342404202,25.89,16.23,16.218,66.26]
[1673342404398,1.92,16.229,16.219,20.0]
[1673342404818,25.89,16.23,16.219,20.0]
[1673342405679,0.96,16.229,16.219,20.0]
[1673342405887,66.21,16.235,16.219,20.0]
[1673342405888,46.21,16.235,16.219,20.0]
[1673342406077,273.0894,16.236,16.22,46.25]
[1673342406288,226.8794,16.236,16.22,46.25]
[1673342406722,20.0,16.234,16.22,46.25]
[1673342406936,20.0,16.234,16.219,66.26]
[1673342407355,25.89,16.23,16.219,46.26]
[1673342407557,25.89,16.23,16.193,31.16188659]
[1673342407558,66.23,16.229,16.193,31.16188659]
[1673342407773,130.0,16.22,16.194,20.0]
[1673342407975,1.92,16.219,16.196,13.77538294]
[1673342408190,18.92,16.219,16.197,13.27]
[1673342408398,130.0,16.22,16.197,13.27]
[1673342408599,46.23,16.227,16.201,20.0]
[1673342408814,18.92,16.226,16.202,158.7046]
[1673342409025,1.92,16.226,16.202,172.47998294]
[1673342409241,1.92,16.226,16.203,13.77538294]
[1673342409452,1.92,16.226,16.205,20.0]
[1673342409668,46.23,16.229,16.206,47.25]
[1673342409870,25.64,16.23,16.211,20.0]
[1673342410200,46.22,16.233,16.212,180.5946]
[1673342410514,46.2,16.238,16.213,13.77538294]
[1673342410723,149.71,16.24,16.215,20.0]
[1673342410724,46.2,16.239,16.215,20.0]
[1673342410910,26.15,16.24,16.217,20.0]
[1673342411129,26.15,16.24,16.218,178.727]
[1673342411347,26.15,16.24,16.219,0.96]
[1673342411556,26.15,16.24,16.221,20.0]
[1673342411758,46.2,16.239,16.222,47.21]
[1673342411972,46.2,16.239,16.222,48.17]
[1673342412295,26.15,16.24,16.223,53.77538294]
[1673342412511,26.15,16.24,16.224,32.84]
[1673342412820,26.15,16.24,16.225,20.0]
[1673342413137,26.15,16.24,16.226,33.31]
[1673342413446,26.15,16.24,16.227,20.0]
[1673342413642,21.92,16.239,16.227,20.0]
[1673342413847,1.92,16.239,16.227,20.0]
[1673342414070,18.92,16.239,16.226,20.0]
[1673342414288,18.92,16.239,16.227,20.0]
[1673342414499,1.92,16.239,16.227,20.0]
[1673342414821,26.15,16.24,16.227,20.0]
[1673342415344,26.15,16.24,16.228,47.35538294]
[1673342415567,26.15,16.24,16.229,40.0]
[1673342415763,26.15,16.24,16.23,34.47]
[1673342415974,26.15,16.24,16.229,74.8]
[1673342416188,109.4443,16.245,16.229,74.8]
[1673342416598,109.4443,16.245,16.229,88.57538294]
[1673342417447,25.68,16.25,16.23,27.55]
[1673342417656,25.68,16.25,16.232,20.0]
[1673342417849,25.68,16.25,16.233,40.55]
[1673342418056,25.68,16.25,16.234,20.0]
[1673342418272,25.68,16.25,16.235,40.6]
[1673342418506,25.68,16.25,16.236,20.0]
[1673342418812,46.16,16.253,16.237,59.67]
[1673342419022,10.6491536,16.26,16.241,20.0]
[1673342419238,10.6491536,16.26,16.242,173.233]
[1673342419429,10.6491536,16.26,16.243,20.0]
[1673342419640,10.6491536,16.26,16.244,60.6]
[1673342419863,56.7891536,16.26,16.245,20.96]
[1673342420172,9.6491536,16.26,16.246,59.8]
[1673342420380,9.6491536,16.26,16.247,20.0]
[1673342420709,9.6491536,16.26,16.248,20.0]
[1673342421131,46.14,16.259,16.248,20.0]
[1673342421443,18.92,16.258,16.248,20.0]
[1673342421753,46.15,16.257,16.236,118.1253]
[1673342421956,17.0,16.256,16.236,118.1253]
[1673342422174,46.15,16.257,16.24,20.0]
[1673342422381,46.14,16.259,16.241,35.63]
[1673342422596,5.6191536,16.272,16.242,20.0]
[1673342422789,5.6191536,16.272,16.25,129.22]
[1673342423004,5.6191536,16.272,16.26,25.63]
[1673342423210,5.6191536,16.272,16.261,46.14]
[1673342423425,5.6191536,16.272,16.26,25.89]
[1673342423647,5.6191536,16.272,16.261,46.14]
[1673342423963,5.6191536,16.272,16.256,20.0]
[1673342424170,70.733415,16.271,16.257,20.0]
[1673342424382,24.623415,16.271,16.258,20.0]
[1673342424586,24.623415,16.271,16.259,20.0]
[1673342425012,24.623415,16.271,16.26,20.0]
[1673342425651,24.623415,16.271,16.26,33.77538294]
[1673342425834,24.623415,16.271,16.262,20.0]
[1673342426172,24.623415,16.271,16.263,1.92]
[1673342426779,24.623415,16.271,16.262,20.0]
[1673342427317,24.623415,16.271,16.263,48.05]
[1673342427523,24.623415,16.271,16.264,20.0]
[1673342427737,24.623415,16.271,16.263,46.13]
[1673342427944,24.623415,16.271,16.262,20.0]
[1673342428366,5.6191536,16.272,16.262,20.0]
[1673342428579,46.11,16.271,16.262,13.77538294]
[1673342428904,5.6191536,16.272,16.259,20.0]
[1673342429307,5.6191536,16.272,16.261,20.0]
[1673342429518,5.6191536,16.272,16.262,46.14]
[1673342429732,5.6191536,16.272,16.263,20.0]
[1673342429950,0.0091536,16.272,16.265,20.0]
[1673342430273,0.0091536,16.272,16.266,197.50478294]
[1673342430488,0.0091536,16.272,16.267,20.0]
[1673342430696,0.0091536,16.272,16.269,20.0]
[1673342430888,46.04,16.294,16.27,46.11]
[1673342431099,285.5101118,16.3,16.27,46.11]
[1673342431100,46.04,16.296,16.271,20.0]
[1673342431309,46.04,16.296,16.272,66.11]
[1673342431524,46.04,16.296,16.273,20.0]
[1673342431735,74.8663506,16.284,16.274,68.02]
[1673342431940,74.8663506,16.284,16.276,0.94001083]
[1673342432166,74.8663506,16.284,16.278,20.0]
[1673342432378,74.8663506,16.284,16.279,20.0]
[1673342432584,74.8663506,16.284,16.236,274.28418268]
[1673342432585,74.8663506,16.284,16.265,20.0]
[1673342432906,20.0,16.282,16.265,20.0]
[1673342433535,20.0,16.282,16.269,20.0]
[1673342433941,20.0,16.282,16.268,46.12]
[1673342434155,46.08,16.282,16.269,20.0]
[1673342434374,74.8663506,16.284,16.269,20.0]
[1673342434572,20.0,16.283,16.271,20.0]
[1673342434778,20.0,16.283,16.27,46.11]
[1673342434993,20.0,16.283,16.269,66.12]
[1673342435327,74.8663506,16.284,16.271,13.77538294]
[1673342435520,20.0,16.283,16.272,1.92]
[1673342436159,74.8663506,16.284,16.272,1.92]
[1673342437412,74.8663506,16.284,16.272,15.69538294]
[1673342437621,74.8663506,16.284,16.273,66.1]
[1673342437947,74.8663506,16.284,16.274,21.92]
[1673342438165,74.8663506,16.284,16.275,66.1]
[1673342438478,74.8663506,16.284,16.276,21.92]
[1673342438687,20.0,16.296,16.277,20.0]
[1673342438998,277.83088041,16.327,16.288,1.16655353]
[1673342439213,277.83088041,16.327,16.289,58.35374]
[1673342439404,24.530507,16.34,16.289,58.35374]
[1673342439405,198.84156984,16.3,16.29,33.78869882]
[1673342439616,198.84156984,16.3,16.291,46.05]
[1673342439830,193.84156984,16.3,16.292,1.49564882]
[1673342440164,193.84156984,16.3,16.291,1.49564882]
[1673342440562,193.84156984,16.3,16.289,13.77538294]
[1673342440766,193.84156984,16.3,16.29,0.96]
[1673342441102,127.2085302,16.3,16.29,20.0]
[1673342441294,127.2085302,16.3,16.292,20.0]
[1673342441534,127.2085302,16.3,16.293,58.30821936]
[1673342441726,127.2085302,16.3,16.294,40.0]
[1673342441933,127.2085302,16.3,16.296,1.52201682]
[1673342442141,127.2085302,16.3,16.297,46.04]
[1673342442459,127.2085302,16.3,16.298,21.92]
[1673342442668,127.2085302,16.3,16.299,0.93626517]
[1673342442876,127.2085302,16.3,16.299,2.85626517]
[1673342443098,127.2085302,16.3,16.28,21.63]
[1673342443313,20.0,16.299,16.289,20.0]
[1673342443717,20.0,16.299,16.288,13.77538294]
[1673342443927,20.0,16.299,16.283,20.0]
[1673342444144,46.03,16.298,16.287,51.77538293]
[1673342444361,127.2085302,16.3,16.288,20.0]
[1673342444362,46.03,16.299,16.288,20.0]
[1673342444554,127.2085302,16.3,16.288,20.0]
[1673342444767,20.0,16.298,16.287,37.99999999]
[1673342445103,46.04,16.297,16.287,37.99999999]
[1673342445301,20.0,16.296,16.287,37.99999999]
[1673342445719,46.04,16.295,16.287,37.99999999]
[1673342445939,20.0,16.294,16.287,37.99999999]
[1673342446138,46.05,16.293,16.287,37.99999999]
[1673342446570,132.12063558,16.296,16.287,37.99999999]
[1673342446990,112.12063558,16.296,16.287,37.99999999]
[1673342447503,20.0,16.295,16.287,37.99999999]
[1673342447716,20.0,16.295,16.288,21.92]
[1673342448151,20.0,16.295,16.288,20.0]
[1673342448570,20.0,16.295,16.287,37.99999999]
[1673342448890,20.0,16.293,16.287,0.00999999]
[1673342449200,20.0,16.291,16.287,0.00999999]
[1673342449397,46.06,16.29,16.261,186.6]
[1673342449610,20.0,16.289,16.274,20.0]
[1673342449822,20.0,16.289,16.274,66.1]
[1673342450026,131.6291531,16.289,16.275,13.77538294]
[1673342450437,131.6291531,16.289,16.274,66.1]
[1673342450650,131.6291531,16.289,16.275,13.77538294]
[1673342451067,111.6291531,16.289,16.276,20.0]
[1673342451292,20.0,16.288,16.276,20.0]
[1673342451508,111.6291531,16.289,16.276,20.0]
[1673342451712,111.6291531,16.289,16.277,1.92]
[1673342452123,111.6291531,16.289,16.278,20.0]
[1673342452338,111.6291531,16.289,16.279,1.92]
[1673342452670,111.6291531,16.289,16.277,20.0]
[1673342452881,111.6291531,16.289,16.278,20.0]
[1673342453281,111.6291531,16.289,16.277,20.0]
[1673342453613,20.0,16.288,16.277,20.0]
[1673342453828,46.06,16.287,16.277,20.0]
[1673342454131,20.0,16.286,16.275,20.0]
[1673342454548,46.07,16.285,16.27,20.0]
[1673342454967,20.0,16.284,16.27,20.0]
[1673342455183,46.08,16.283,16.27,20.0]
[1673342456976,111.6291531,16.284,16.271,1.92]
[1673342457421,111.6291531,16.284,16.274,20.0]
[1673342457628,20.0,16.299,16.276,20.0]
[1673342457826,20.0,16.296,16.277,66.09]
[1673342458034,46.04,16.295,16.278,21.92]
[1673342458243,46.04,16.297,16.279,46.09]
[1673342458570,46.03,16.299,16.28,21.92]
[1673342458886,136.9499,16.307,16.281,46.08]
[1673342458887,46.02,16.303,16.281,46.08]
[1673342459103,20.0,16.302,16.282,41.92]
[1673342459315,46.03,16.301,16.284,20.0]
[1673342459623,46.03,16.301,16.285,21.92]
[1673342459834,66.03,16.299,16.285,21.92]
[1673342460052,66.03,16.299,16.285,1.92]
[1673342460367,66.03,16.299,16.286,20.0]
[1673342460572,66.03,16.299,16.285,1.92]
[1673342461099,66.03,16.299,16.27,20.0]
[1673342461295,137.9181,16.298,16.274,20.0]
[1673342461511,20.0,16.296,16.274,33.77538294]
[1673342461710,64.96,16.295,16.271,46.11]
[1673342461921,20.0,16.293,16.27,20.0]
[1673342462255,20.0,16.291,16.27,20.0]
[1673342462451,165.0581,16.29,16.27,20.0]
[1673342462784,20.0,16.289,16.27,20.0]
[1673342462971,46.06,16.288,16.27,20.0]
[1673342463191,46.06,16.288,16.27,33.77538294]
[1673342463394,46.03,16.299,16.272,20.0]
[1673342463721,158.9233,16.299,16.273,190.31798294]
[1673342463925,20.0,16.298,16.274,20.0]
[1673342464145,46.04,16.297,16.275,20.96]
[1673342464340,46.03,16.298,16.275,20.96]
[1673342464766,46.03,16.298,16.277,206.6]
[1673342464979,15.57937711,16.3,16.278,264.9914]
[1673342465193,15.57937711,16.3,16.28,207.98]
[1673342465515,15.57937711,16.3,16.282,20.0]
[1673342465822,15.57937711,16.3,16.283,233.64]
[1673342466035,15.57937711,16.3,16.285,20.0]
[1673342466240,15.57937711,16.3,16.286,47.99]
[1673342466454,0.00937711,16.3,16.288,20.0]
[1673342469917,0.00937711,16.3,16.288,66.06]
[1673342471403,0.00937711,16.3,16.289,20.0]
[1673342471591,0.00937711,16.3,16.29,46.06]
[1673342471803,0.00937711,16.3,16.291,40.0]
[1673342472008,0.00937711,16.3,16.293,20.0]
[1673342472224,0.00937711,16.3,16.294,67.96]
[1673342472769,0.00937711,16.3,16.295,20.0]
[1673342472980,0.00937711,16.3,16.296,66.04]
[1673342473171,0.00937711,16.3,16.297,20.0]
[1673342473375,0.00937711,16.3,16.298,66.03]
[1673342473807,0.00937711,16.3,16.299,20.0]
[1673342474360,0.00937711,16.3,16.299,16.92753021]
[1673342475187,0.00937711,16.3,16.299,62.95753021]
[1673342475376,0.00937711,16.3,16.295,20.0]
[1673342478759,0.00937711,16.3,16.297,20.0]
[1673342478963,0.00937711,16.3,16.298,66.03]
[1673342479196,0.00937711,16.3,16.299,20.0]
[1673342481833,0.00937711,16.3,16.299,21.92]
[1673342482347,45.98,16.318,16.3,20.0]
[1673342482544,163.6909,16.325,16.301,67.95]
[1673342482756,163.6909,16.325,16.302,20.0]
[1673342482757,20.0,16.324,16.302,20.0]
[1673342482972,45.98,16.318,16.304,20.0]
[1673342483178,45.98,16.318,16.305,20.0]
[1673342483386,18.55826631,16.317,16.304,20.0]
[1673342483599,45.98,16.316,16.304,20.0]
[1673342483824,117.7309,16.316,16.304,20.0]
[1673342484032,45.99,16.315,16.304,20.0]
[1673342484770,45.98,16.318,16.304,20.0]
[1673342485291,45.97,16.322,16.305,46.01]
[1673342485497,115.7097,16.323,16.306,20.0]
[1673342485697,96.4343,16.344,16.314,192.17338531]
[1673342486023,96.4343,16.344,16.316,20.0]
[1673342486024,468.3769572,16.319,16.316,20.0]
[1673342486243,468.3769572,16.319,16.318,20.0]
[1673342486435,437.6648572,16.319,16.318,65.98]
[1673342486761,437.6648572,16.319,16.318,79.75538294]
[1673342486967,263.1864572,16.319,16.318,33.77538294]
[1673342487284,45.91,16.342,16.32,99.25345149]
[1673342487505,162.5545,16.342,16.321,0.96]
[1673342487814,24.023548,16.337,16.322,20.96]
[1673342488030,45.93,16.336,16.323,0.96]
[1673342488223,24.023548,16.337,16.323,0.96]
[1673342488432,24.023548,16.337,16.324,0.96]
[1673342488637,0.003548,16.337,16.325,46.92]
[1673342488868,8.55261431,16.343,16.337,24.02]
[1673342489062,8.55261431,16.343,16.331,1.33797509]
[1673342489273,8.55261431,16.343,16.328,21.33797509]
[1673342490021,21.36,16.34,16.328,1.33797509]
[1673342490230,45.92,16.339,16.32,99.25345149]
[1673342490459,8.55261431,16.343,16.329,50.77492185]
[1673342490671,8.55261431,16.343,16.331,20.0]
[1673342490978,21.42,16.34,16.326,0.98711418]
[1673342491301,20.0,16.338,16.321,20.0]
[1673342491497,45.92,16.337,16.321,20.0]
[1673342491709,20.0,16.336,16.315,13.77538294]
[1673342492037,21.42,16.33,16.314,192.17338531]
[1673342492254,45.95,16.329,16.314,192.17338531]
[1673342492665,45.93,16.336,16.321,20.0]
[1673342492976,45.93,16.336,16.314,192.17338531]
[1673342493405,21.25,16.33,16.314,192.17338531]
[1673342493599,82.95,16.329,16.314,192.17338531]
[1673342493933,0.96,16.328,16.314,192.17338531]
[1673342494247,20.0,16.326,16.314,192.17338531]
[1673342494434,20.0,16.324,16.314,192.17338531]
[1673342494647,21.25,16.32,16.314,192.17338531]
[1673342494989,47.89,16.319,16.314,192.17338531]
[1673342495295,45.97,16.319,16.314,192.17338531]
[1673342495700,45.97,16.319,16.314,192.03241731]
[1673342496123,1.92,16.318,16.314,192.03241731]
[1673342496345,45.98,16.317,16.314,192.03241731]
[1673342496661,20.0,16.316,16.314,192.03241731]
[1673342496978,45.99,16.315,16.314,0.00241731]
[1673342497374,45.98,16.318,16.314,0.00241731]
[1673342497841,38.92,16.317,16.314,0.00241731]
[1673342498015,38.92,16.317,16.3,20.0]
[1673342498016,65.98,16.316,16.3,20.0]
[1673342498352,20.0,16.315,16.3,20.0]
[1673342498663,45.99,16.314,16.3,20.0]
[1673342498853,45.99,16.315,16.3,20.0]
[1673342499069,45.98,16.316,16.3,20.0]
[1673342499385,18.92,16.315,16.3,20.0]
[1673342499603,20.0,16.314,16.3,20.0]
[1673342499802,47.91,16.313,16.3,20.0]
[1673342500014,20.0,16.312,16.3,20.0]
[1673342500219,47.91,16.313,16.3,20.0]
[1673342500420,47.91,16.313,16.296,20.0]
[1673342500421,17.0,16.312,16.286,101.64023674]
[1673342500645,20.0,16.309,16.284,20.0]
[1673342500851,64.93,16.308,16.284,20.0]
[1673342501070,64.93,16.308,16.285,46.07]
[1673342501288,20.0,16.307,16.286,20.0]
[1673342501630,20.0,16.305,16.288,20.0]
[1673342501812,47.94,16.304,16.289,1.05492276]
[1673342502002,64.94,16.304,16.29,46.06]
[1673342502338,111.3095,16.307,16.291,1.05479324]
[1673342502655,111.3095,16.307,16.292,20.0]
[1673342502965,112.5109,16.308,16.293,46.05]
[1673342503375,157.2924,16.313,16.294,20.0]
[1673342503596,157.2924,16.313,16.296,20.0]
[1673342503788,157.2924,16.313,16.297,20.0]
[1673342504228,157.2924,16.313,16.298,20.0]
[1673342504428,111.3024,16.313,16.299,46.03]
[1673342504640,111.3024,16.313,16.3,20.0]
[1673342504842,111.3024,16.313,16.301,46.02]
[1673342505055,111.3024,16.313,16.3,20.0]
[1673342505693,111.3024,16.313,16.3,33.77538294]
[1673342506119,45.97,16.319,16.301,20.0]
[1673342506324,114.039,16.326,16.301,20.0]
[1673342506325,113.6724,16.323,16.302,66.98]
[1673342506535,45.97,16.322,16.304,20.0]
[1673342506756,113.6724,16.323,16.305,66.97]
[1673342506959,113.6724,16.323,16.305,80.74538294]
[1673342507169,113.6724,16.323,16.306,33.77538294]
[1673342507381,113.6724,16.323,16.308,20.0]
[1673342508009,113.6724,16.323,16.31,20.0]
[1673342508648,113.6724,16.323,16.31,33.77538294]
[1673342508969,113.6724,16.323,16.312,20.0]
[1673342509372,45.96,16.325,16.313,13.77538294]
[1673342509577,162.6863,16.329,16.314,20.0]
[1673342509809,162.6863,16.329,16.314,44.43963971]
[1673342510006,162.6863,16.329,16.314,89.48718861]
[1673342510217,20.0,16.328,16.302,20.0]
[1673342510422,45.95,16.327,16.302,20.0]
[1673342510630,21.36,16.32,16.302,19.68723]
[1673342510843,180.6663,16.319,16.302,19.68723]
[1673342511052,163.6663,16.319,16.302,19.68723]
[1673342511284,17.96,16.318,16.302,19.68723]
[1673342511598,46.94,16.317,16.302,19.68723]
[1673342511793,17.96,16.316,16.3,20.0]
[1673342511999,46.95,16.315,16.3,20.0]
[1673342512223,17.96,16.314,16.3,20.0]
[1673342512429,46.95,16.313,16.3,20.0]
[1673342513057,45.99,16.313,16.3,20.0]
[1673342513582,45.98,16.316,16.3,20.0]
[1673342513785,21.92,16.315,16.3,20.0]
[1673342513991,45.99,16.314,16.3,20.0]
[1673342514205,1.92,16.313,16.3,20.0]
[1673342514422,45.99,16.314,16.3,20.0]
[1673342514842,17.0,16.313,16.3,20.0]
[1673342515053,45.99,16.314,16.3,20.0]
[1673342515255,45.98,16.316,16.301,13.77538294]
[1673342515468,116.7363,16.319,16.303,20.0]
[1673342515698,45.98,16.318,16.3,20.0]
[1673342516116,116.7363,16.319,16.301,20.0]
[1673342516306,116.7363,16.319,16.302,20.0]
[1673342516518,116.7363,16.319,16.303,66.02]
[1673342516739,116.7363,16.319,16.304,20.0]
[1673342516945,116.7363,16.319,16.306,20.0]
[1673342517155,116.7363,16.319,16.307,66.01]
[1673342517588,45.96,16.325,16.308,20.0]
[1673342517787,45.95,16.329,16.31,20.0]
[1673342517999,20.0,16.339,16.311,46.0]
[1673342518000,45.93,16.334,16.311,46.0]
[1673342518317,18.55826631,16.333,16.311,46.0]
[1673342518535,21.18,16.33,16.312,20.0]
[1673342518849,45.95,16.329,16.312,20.0]
[1673342519054,45.95,16.329,16.314,20.0]
[1673342519674,45.95,16.329,16.312,20.0]
[1673342520526,64.50826631,16.329,16.312,20.0]